Cogmind - Beta 16.1 @@@ ROGUE MODE // 2026.02.02 @ 02:13:04 Player: H3-MLN Result: Destroyed by Y-64 Sentinel with Wave Gun Performance ------------- Evolutions (5) 2500 Regions Visited (12) 2400 Robots Destroyed (168) 840 Value Destroyed (4821) 4821 Prototype IDs (72) 1440 Alien Tech Used (0) 0 Bonus (723) 723 TOTAL SCORE: 12724 Bonus ------- High Alert Combat Kills 720 Follower Combat Kills 297 Friendly Fire -294 Cogmind --------- Core Integrity 0/1000 Matter 150/300 Energy 100/100 System Corruption 2% Temperature Cool (9) Movement Core (900) Ox17 Location -5/Factory Parts ------- > --- POWER (2) -------- (None) > --- PROPULSION (5) --- (None) > --- UTILITY (7) ------ High-capacity Storage Unit Improved Transmission Jammer Improved Hacking Suite Authchip [Armor] Authchip [Weapon] Blink Core > --- WEAPON (3) ------- Plasma Sword > --- INVENTORY (20) --- Experimental Cryofiber Web Experimental Cooling System Experimental Cooling System Experimental Coolant Injector Deep Structural Scanner Surveybot 17 Chip Multitargeting Array Core Analyzer Precision Energy Filter Advanced Weapon Cycler Thermal Barrier Authchip [Armor] CPS Tube (2) Peak State ------------ > --- POWER ------------ Light Angular Momentum Engine Micro Fission Core > --- PROPULSION ------- Armored Leg Armored Leg Tripod Weapons Platform > --- UTILITY ---------- Experimental Cooling System High-capacity Storage Unit Centrium Heavy Armor Plating Authchip [Armor] Authchip [Weapon] Blink Core > --- WEAPON ----------- Heavy Laser YOLO Cannon Gauss Rifle Plasma Sword > --- INVENTORY -------- Experimental Power Amplifier Experimental Cryofiber Web Experimental Cooling System Experimental Coolant Injector Deep Structural Scanner Surveybot 17 Chip Multitargeting Array Core Analyzer Precision Energy Filter Advanced Weapon Cycler Improved Transmission Jammer Experimental Focal Shield Thermal Barrier Authchip [Armor] Authchip [Armor] Scrapoid Pod KE Penetrator Rocket Array CPS Tube [Rating: 144] Favorites ----------- Power Light Ion Engine Engine Light Ion Engine Power Core Micro Nuclear Core Propulsion Flying Fortress v7 Treads Light Treads Leg Tripod Weapons Platform Wheel Wheel Flight Unit Flying Fortress v7 Utility Blink Core Device Blink Core Storage High-capacity Storage Unit Processor Machine Analyzer Hackware Hacking Suite Protection Medium Armor Plating Weapon Katana Energy Gun Wave Gun Energy Cannon YOLO Cannon Ballistic Gun Assault Rifle Ballistic Cannon Light Cannon Launcher Rocket Array Impact Weapon Power Maul Slashing Weapon Katana Special Melee Weapon Datajack Build | -11 -10 -10 -10 -9 -8 -7 -7 -7 -7 -7 -7 -5 ------- Run | Yrd Mat Min Exi Min Mat Fac Was Fac Sto Rec Scr Fac Slots Evolved 10 | . . . . . 4 2 . . . . . 4 Power 1 | . . . . . . . . . . . . 1 Propulsion 3 | . . . . . 2 1 . . . . . . Utility 5 | . . . . . 2 1 . . . . . 2 Weapon 1 | . . . . . . . . . . . . 1 Parts Attached 117 | 4 10 1 7 1 20 19 1 6 . 2 16 30 Power 14 | 1 2 . . . 2 3 . . . . 1 5 Engine 10 | 1 2 . . . 2 1 . . . . . 4 Core 4 | . . . . . . 2 . . . . 1 1 Reactor . | . . . . . . . . . . . . . Propulsion 30 | 2 . . 2 1 8 3 . . . . 4 10 Treads 13 | 1 . . 1 1 6 . . . . . 2 2 Leg 9 | . . . . . . . . . . . 2 7 Wheel 5 | 1 . . 1 . 2 . . . . . . 1 Hover . | . . . . . . . . . . . . . Flight 3 | . . . . . . 3 . . . . . . Utility 42 | 1 3 . 3 . 5 9 1 2 . 2 9 7 Device 19 | . . . 1 . . 4 . 1 . 2 6 5 Storage 5 | 1 1 . 2 . . . 1 . . . . . Processor 5 | . . . . . . 5 . . . . . . Hackware 6 | . . . . . 1 . . 1 . . 3 1 Protection 7 | . 2 . . . 4 . . . . . . 1 Artifact . | . . . . . . . . . . . . . Weapon 31 | . 5 1 2 . 5 4 . 4 . . 2 8 Energy Gun 6 | . . . . . 1 1 . . . . 1 3 Energy Cannon 3 | . 1 . 1 . . 1 . . . . . . Ballistic Gun 7 | . 2 . . . 2 . . . . . . 3 Ballistic Cannon 2 | . 1 1 . . . . . . . . . . Launcher 5 | . 1 . . . 1 . . 3 . . . . Special Weapon . | . . . . . . . . . . . . . Impact Weapon 1 | . . . . . . . . 1 . . . . Slashing Weapon 4 | . . . . . 1 1 . . . . . 2 Piercing Weapon . | . . . . . . . . . . . . . Special Melee Weapon 3 | . . . 1 . . 1 . . . . 1 . Unidentified Prototypes 6 | . . . . . 1 1 1 2 . . . 1 Corrupted Parts 9 | . . . . . . . . . . . 9 . System Corruption 31 | . . . . . . . . . . . 31 . Parts Lost 31 | . . . . . 3 2 . . . 1 . 25 Power 8 | . . . . . . 2 . . . . . 6 Propulsion 7 | . . . . . 1 . . . . . . 6 Utility 7 | . . . . . 1 . . . . 1 . 5 Weapon 9 | . . . . . 1 . . . . . . 8 Highest Loss Streak 10 | . . . . . 1 1 . . . 1 . 10 To Critical Strikes 1 | . . . . . . . . . . . . 1 Average Backups 12 | 4 16 19 19 16 17 17 16 16 17 16 3 18 Power . | . 1 1 1 . . . . . . . . . Propulsion 1 | 1 3 4 4 3 3 1 1 1 1 1 . . Utility 7 | 1 7 8 7 7 7 12 14 14 14 14 2 15 Weapon 2 | 1 4 5 6 4 5 2 1 1 2 1 . 1 Tool/Special . | . . . . . . . . . . . . . Unused Backups 48 | . 2 1 3 1 9 12 1 1 . 1 10 7 Power 3 | . 1 . . 1 1 . . . . . . . Propulsion 6 | . 1 . . . 2 2 . . . . 1 . Utility 23 | . . 1 2 . 2 8 1 . . 1 2 6 Weapon 8 | . . . 1 . 4 2 . 1 . . . . Tool/Special 8 | . . . . . . . . . . . 7 1 Average Slot Usage (%) 52 | . 98 100 45 100 98 75 76 70 76 71 15 69 Engine 4 | . 14 14 3 14 9 6 . . . . . 5 Treads 2 | . 14 14 2 14 26 . . . . . . 4 Wheel 1 | . 14 14 4 14 9 . . . . . . . Flight 6 | . . . . . . 14 15 15 15 15 . . Device 11 | . . . 11 14 9 14 13 21 23 17 7 10 Storage 5 | . 14 14 14 14 9 7 8 7 7 7 1 5 Processor 2 | . . . . . . 6 7 . . . . . Hackware 4 | . . . . . 8 7 7 7 7 7 1 12 Protection 1 | . 13 14 1 . 8 . . . . . . 1 Ballistic Gun 1 | . 8 . 1 17 13 . . . . . . 1 Ballistic Cannon 1 | . 9 27 3 10 . . . . . . . . Slashing Weapon 5 | . . . . . . 14 7 7 7 5 . 3 Peak Build Rating 144 | 5 12 13 40 29 52 86 90 87 87 100 113 144 Average Rating 46 | 4 11 12 19 28 43 73 87 82 87 91 23 114 On Entrance 53 | 1 5 12 13 25 29 51 86 87 87 87 100 113 Avg Prop Armor Cover (%) 11 | 21 8 8 9 11 14 2 . . . . 17 13 Naked Turns . | . . . . . . . . . . . . . Heaviest Build 116 | 8 60 60 99 60 112 63 61 66 64 69 82 116 Greatest Support 122 | 16 16 16 26 16 88 65 64 64 64 64 90 122 Greatest Overweight (x) 29 | . 3 3 29 5 6 1 . 1 . 1 15 17 Average Overweight (x) 2 | . 2 3 8 4 3 . . . . . 2 . Largest Inventory Capacity 25 | 8 20 20 25 20 25 25 20 20 20 20 20 20 Average Capacity 15 | 6 18 20 22 20 23 20 20 20 20 20 8 20 Most Carried 25 | 7 20 20 25 20 25 25 20 20 20 20 20 20 Average Carried 14 | 4 16 19 21 19 22 19 19 19 20 19 5 19 Final Capacity 25 | 8 20 20 20 20 25 20 20 20 20 20 20 20 Final Carried 25 | 7 20 20 20 20 25 20 20 20 20 20 20 13 Scrap Suit Usage (%) 1 | . . . . . . . . . . . 1 . Class Distribution -------------------- 42% | Commander-Mutant 32% | Scavenger-Mutant 22% | Mutant Dominant Class ---------------- Mutant | -10/Materials Mutant | -10/Mines Mutant | -10/Exiles Mutant | -9/Mines Mutant | -8/Materials Scavenger-Mutant | -7/Factory Mutant | -7/Waste Mutant | -7/Factory Mutant | -7/Storage Commander-Mutant | -7/Recycling Commander-Mutant | -7/Scraptown Scavenger-Tank | -5/Factory Resources | -11 -10 -10 -10 -9 -8 -7 -7 -7 -7 -7 -7 -5 ----------- Run | Yrd Mat Min Exi Min Mat Fac Was Fac Sto Rec Scr Fac Matter Collected 3647 | 240 486 70 . 202 679 305 . 135 . 45 200 1285 Remotely . | . . . . . . . . . . . . . Salvage Created 5994 | . 664 115 . 138 910 501 . 256 . 474 . 2936 Parts 320 | . 50 12 . 11 51 32 . 20 . 7 . 137 Haulers Intercepted 10 | . 2 . . . 3 1 . 3 . . . 1 Recyclers Shooed 4 | . . . . . 1 . . . . . . 3 Parts Field Recycled . | . . . . . . . . . . . . . Retrieved Matter . | . . . . . . . . . . . . . Parts Self-Destructed . | . . . . . . . . . . . . . Prevented . | . . . . . . . . . . . . . Parts Restored . | . . . . . . . . . . . . . Kills | -11 -10 -10 -10 -9 -8 -7 -7 -7 -7 -7 -7 -5 ------- Run | Yrd Mat Min Exi Min Mat Fac Was Fac Sto Rec Scr Fac Combat Hostiles Destroyed 91 | . 13 8 . 1 17 3 . 1 . 3 . 45 Melee 21 | . . . . . . 3 . 1 . 3 . 14 Guns 25 | . 3 . . . 14 . . . . . . 8 Cannons 15 | . 7 2 . 1 . . . . . . . 5 AOE 30 | . 3 6 . . 3 . . . . . . 18 Classes Destroyed 16 | . 7 1 . . 5 1 . . . . . 2 Worker 22 | . . . . . 3 2 . . . . . 17 Builder 12 | . 2 . . . . 1 . . . . . 9 Tunneler 5 | . . 1 . 2 . . . . . . . 2 Hauler 10 | . 2 . . . 3 1 . 3 . . . 1 Recycler 12 | . 1 . . . . 1 . 1 . 4 . 5 Mechanic 4 | . . . . . 1 . . . . . . 3 Operator 5 | . 2 . . . 1 . . 1 . . . 1 Watcher 4 | . 1 . . . 2 . . . . . . 1 Swarmer 14 | . 6 6 . . . . . . . . . 2 Grunt 44 | . 7 2 . 1 10 1 . . . 2 . 21 Duelist 2 | . . . . . . . . . . . . 2 Protector 2 | . . . . . . . . . . . . 2 Sentry 5 | . . . . . 4 . . . . 1 . . Specialist 4 | . . . . . 2 . . . . . . 2 Hunter 13 | . . . . . 1 . . . . . . 12 Programmer 8 | . . . . . . 1 . 1 . . . 6 Thug 1 | . . . . 1 . . . . . . . . Best Kill Streak 28 | . 4 3 . 1 7 2 . 2 . 6 . 28 Combat Bots Only 15 | . 3 3 . 1 5 1 . 1 . 2 . 15 Max Kills in Single Turn 5 | . 2 3 . 1 3 1 . 1 . 1 . 5 Gunslinging . | . . . . . . . . . . . . . Exploded 4 | . 1 3 . . 2 . . . . . . 4 Melee 1 | . . . . . . 1 . 1 . 1 . 1 Uniques/NPCs Destroyed 1 | . . . . . . 1 . . . . . . 7R-MNS (-7/Factory) Combat | -11 -10 -10 -10 -9 -8 -7 -7 -7 -7 -7 -7 -5 -------- Run | Yrd Mat Min Exi Min Mat Fac Was Fac Sto Rec Scr Fac Hostile Shots Fired 871 | . 27 6 . 6 95 27 1 101 85 38 . 485 Missed 304 | . 7 2 . 3 25 14 1 65 53 11 . 123 Hits 567 | . 20 4 . 3 70 13 . 36 32 27 . 362 Melee 5 | . . . . . . . . . . . . 5 Projectile 562 | . 20 4 . 3 70 13 . 36 32 27 . 357 AOE 1 | . . . . . . 1 . . . . . . Critical Strikes 19 | . 1 . . . 3 . . 1 . . . 14 Part Disruptions 2 | . 1 . . . . . . . . . . 1 Damage Taken 8951 | . 222 40 . 37 1119 317 . 451 307 203 . 6255 Core 1287 | . 11 . . 13 82 43 . 56 51 29 . 1002 Absorbed by Shields 44 | . . . . . . . . 8 . . . 36 Ignored by Resistances 257 | . . . . . . . . . . . . 257 Regen/Repaired (Parts) 30 | . . . . . . . . 30 . . . . Core Remaining (%) 87 | 100 . . . 90 85 . . . . . 74 . Volleys Fired 198 | . 38 6 . 6 81 . . . . 2 . 65 Largest 3 | . 2 2 . 2 2 . . . . 1 . 3 Hottest 181 | . 90 60 . 50 108 . . . . 81 . 181 Shots Fired 346 | . 71 11 . 12 156 . . . . 2 . 94 Gun 266 | . 30 . . 6 152 . . . . 2 . 76 Cannon 66 | . 38 10 . 6 . . . . . . . 12 Launcher 14 | . 3 1 . . 4 . . . . . . 6 Special . | . . . . . . . . . . . . . Kinetic 231 | . 49 10 . 12 130 . . . . . . 30 Thermal 101 | . 19 . . . 22 . . . . 2 . 58 Explosive 14 | . 3 1 . . 4 . . . . . . 6 Electromagnetic . | . . . . . . . . . . . . . Robot Hit Streak 15 | . 10 10 . 4 15 . . . . 4 . 8 Robot Miss Streak 5 | . 4 . . 2 5 . . . . 1 . 4 Penetration Max 1 | . . . . . . . . . . . . 1 Secondary Targets 2 | . . . . . . . . . . . . 2 Max Gunslinging Chain 1 | . . . . . . . . . . . . 1 Shots Hit Robots 340 | . 43 6 4 8 110 27 . 10 . 11 1 120 Core Hits 314 | . 30 9 . 5 65 9 . 4 . 5 . 187 Critical Kills 3 | . . . . . 1 . . . . 1 . 1 Critical Parts Destroyed 1 | . . . . 1 . . . . . . . . Critical Strikes 15 | . . . . 1 1 . . 2 . 1 . 10 Meltdown 1 | . . . . . . . . . . . . 1 Destroy 2 | . . . . 1 1 . . . . . . . Smash 1 | . . . . . . . . . . 1 . . Sever 11 | . . . . . . . . 2 . . . 9 Melee Attacks 177 | . . . 4 . . 56 . 16 2 17 1 81 Impact 10 | . . . . . . . . 1 . 9 . . Slashing 158 | . . . . . . 53 . 15 2 8 . 80 Piercing . | . . . . . . . . . . . . . Sneak Attacks 35 | . . . 4 . . 10 . 5 . 4 1 11 Combat Hostiles 2 | . . . . . . 1 . . . . . 1 Follow-up Attacks . | . . . . . . . . . . . . . Damage Inflicted 18193 | . 1054 356 . 168 2275 1025 . 524 . 730 . 12061 Guns 3071 | . 276 . . 63 1601 . . . . 23 . 1108 Cannons 1876 | . 408 112 . 105 . . . . . . . 1251 Explosions 8092 | . 370 244 . . 674 . . . . . . 6804 Melee 5154 | . . . . . . 1025 . 524 . 707 . 2898 Ramming . | . . . . . . . . . . . . . Kinetic 2384 | . 449 112 . 168 1209 . . . . . . 446 Thermal 5944 | . 277 133 . . 392 . . . . 23 . 5119 Explosive 4613 | . 230 111 . . 674 . . . . . . 3598 Electromagnetic 98 | . 98 . . . . . . . . . . . Impact 554 | . . . . . . . . . . 554 . . Slashing 4600 | . . . . . . 1025 . 524 . 153 . 2898 Piercing . | . . . . . . . . . . . . . Highest Corruption 12 | . . . . . . . 9 9 3 1 12 2 Average Corruption 4 | . . . . . . . 9 6 2 1 5 1 Corruption Purged 10 | . . . . . . . . 7 2 1 . . Corruption Blocked . | . . . . . . . . . . . . . Effects 27 | . . . . . . . 2 16 1 1 1 6 Message Errors 6 | . . . . . . . 1 2 . 1 1 1 Matter Fused 5 | . . . . . . . . 2 1 . . 2 Heat Flow Errors 4 | . . . . . . . 1 2 . . . 1 Energy Discharges 7 | . . . . . . . . 5 . . . 2 Data Loss (minor) 4 | . . . . . . . . 4 . . . . Alerts 1 | . . . . . . . . 1 . . . . Overload Shots . | . . . . . . . . . . . . . Overflow Damage 1293 | . 46 22 . . . 73 . 97 . 252 . 803 Projectiles 207 | . 7 . . . . . . . . . . 200 Explosions 241 | . 39 22 . . . . . . . . . 180 Melee 845 | . . . . . . 73 . 97 . 252 . 423 Knockbacks 6 | . 1 2 . . . . . . . 3 . . Impact 3 | . . . . . . . . . . 3 . . Kinetic 3 | . 1 2 . . . . . . . . . . Secondary . | . . . . . . . . . . . . . Self-Inflicted Damage 357 | . 26 . . . 30 . . . . . . 301 Shots 16 | . 2 . . . 3 . . . . . . 11 Rammed . | . . . . . . . . . . . . . Targets Rammed . | . . . . . . . . . . . . . Kicked . | . . . . . . . . . . . . . Crushed . | . . . . . . . . . . . . . Highest Temperature 456 | . 219 12 . 6 148 . 278 231 3 62 . 456 Average Temperature 76 | . 67 8 . 4 50 . 142 87 3 31 . 111 Received Heat Transfer 2297 | . 54 15 . 21 522 24 . 137 78 60 . 1386 Effects 3 | . . . . . . . . . . . . 3 Interference 3 | . . . . . . . . . . . . 3 Siege Activations . | . . . . . . . . . . . . . Martial Activations . | . . . . . . . . . . . . . Shielding Activations . | . . . . . . . . . . . . . Robots Disrupted . | . . . . . . . . . . . . . Combat Hostiles . | . . . . . . . . . . . . . Robots Corrupted 3 | . . . . . . . . . . 3 . . Combat Hostiles . | . . . . . . . . . . . . . Parts Fried 3 | . . . . . . . . . . 3 . . Impact Corruptions 5 | . . . . . . . . . . 5 . . Robots Melted 1 | . . . . . . . . . . . . 1 Combat Hostiles . | . . . . . . . . . . . . . Parts Melted 14 | . . . . . 2 1 . . . . . 11 Heat Transferred 6755 | . 531 150 . . 875 . . . . 37 . 5162 Parts Sabotaged . | . . . . . . . . . . . . . Parts Stolen . | . . . . . . . . . . . . . Parts Stripped . | . . . . . . . . . . . . . Power Chain Reactions 1 | . 1 . . . . . . . . . . . Alert | -11 -10 -10 -10 -9 -8 -7 -7 -7 -7 -7 -7 -5 ------- Run | Yrd Mat Min Exi Min Mat Fac Was Fac Sto Rec Scr Fac Maximum Alert Level 4 | . . . . . 1 . . 1 . . . 4 Low Security (%) 91 | 100 100 100 . 100 99 100 100 9 100 100 . 24 Level 1 5 | . . . . . . . . 90 . . . 32 Level 2 . | . . . . . . . . . . . . 12 Level 3 . | . . . . . . . . . . . . 10 Level 4 1 | . . . . . . . . . . . . 20 Level 5 . | . . . . . . . . . . . . . High Security . | . . . . . . . . . . . . . Max Security . | . . . . . . . . . . . . . Peak Influence 1166 | . 153 99 . 84 200 136 47 355 181 145 . 1166 Initial 149 | . . . . . . 46 47 11 149 70 . . Average 56 | . 46 33 . 13 118 2 36 228 159 43 . 468 Influence Increases 4715 | . 476 231 . 144 675 231 . 662 62 277 . 1957 Destroy 0b10 Robot/C 1940 | . 260 160 . 100 400 40 . 20 . 60 . 900 Destroy 0b10 Robot/NC 385 | . 40 5 . 10 50 25 . 25 . 20 . 210 Destroy Leader 450 | . 66 30 . 20 110 12 . 16 . . . 196 Allied During Kill 75 | . . 4 . 14 5 . . . . 1 . 51 Successful Hack 192 | . 33 . . . 35 44 . 35 . 45 . . Select Force Hacks 150 | . . . . . . . . . . 150 . . Disable Machine 195 | . 45 15 . . . 60 . . . . . 75 Anti-Garrison Action 400 | . . . . . . . . 200 . . . 200 Destroy Structure 328 | . 17 17 . . 30 5 . 6 2 1 . 250 Partial Spotted 195 | . . . . . 15 . . 120 60 . . . Lose Combat Pursuer 405 | . 15 . . . 30 45 . 240 . . . 75 Influence Decreases 3608 | . 476 220 11 144 572 198 119 350 210 458 . 850 Entered New Map 454 | . . . 11 . . 57 89 6 180 111 . . Time Decay 2496 | . 282 220 . 144 522 131 10 334 30 337 . 486 Lost Part 300 | . . . . . 30 10 . . . 10 . 250 Lost Ally 164 | . . . . . 20 . 20 10 . . . 114 Purge Threat 194 | . 194 . . . . . . . . . . . Squads Dispatched 61 | . 2 1 . 1 6 22 . 12 . . . 17 Investigation 11 | . 1 . . 1 . 1 . 6 . . . 2 Extermination 24 | . . . . . . 20 . 2 . . . 2 Reinforcement 14 | . 1 . . . 3 . . 3 . . . 7 Assault 3 | . . 1 . . . . . . . . . 2 Garrison 9 | . . . . . 3 1 . 1 . . . 4 Intercept . | . . . . . . . . . . . . . Searches Triggered . | . . . . . . . . . . . . . Construction Impeded 3 | . . . . . . . . . . . . 3 Haulers Reinforced 3 | . . . . . . . . 1 . . . 2 Active Scanning Responses . | . . . . . . . . . . . . . Cargo Convoy Interrupts 1 | . . . . . . . . . . . . 1 Stealth | -11 -10 -10 -10 -9 -8 -7 -7 -7 -7 -7 -7 -5 --------- Run | Yrd Mat Min Exi Min Mat Fac Was Fac Sto Rec Scr Fac Distress Signals 13 | . . . . . 1 1 . 1 1 . . 9 Communications Jammed 1 | . . . . . . . . . . . . 1 Distress Signals 1 | . . . . . . . . . . . . 1 Times Spotted 219 | . 26 8 . 3 34 22 6 25 13 2 . 80 Peak Tracking Total 13 | . 4 3 . 2 5 4 6 8 13 2 . 11 Tactical Retreats 16 | . 1 . . . 1 3 . 8 . . . 3 Traps | -11 -10 -10 -10 -9 -8 -7 -7 -7 -7 -7 -7 -5 ------- Run | Yrd Mat Min Exi Min Mat Fac Was Fac Sto Rec Scr Fac Traps Triggered 7 | . 2 . . . . 2 . 2 . . . 1 Indirectly . | . . . . . . . . . . . . . Trap Hack Attempts . | . . . . . . . . . . . . . Triggered . | . . . . . . . . . . . . . Disarmed . | . . . . . . . . . . . . . Reprogrammed . | . . . . . . . . . . . . . Reused . | . . . . . . . . . . . . . Traps Extracted . | . . . . . . . . . . . . . Installed . | . . . . . . . . . . . . . Triggered . | . . . . . . . . . . . . . Most Traps Carried 1 | . . . . . . . . . . . 1 . Machines | -11 -10 -10 -10 -9 -8 -7 -7 -7 -7 -7 -7 -5 ---------- Run | Yrd Mat Min Exi Min Mat Fac Was Fac Sto Rec Scr Fac Machines Disabled 13 | . 3 1 . . . 4 . . . . . 5 Max in Single Turn 4 | . 2 1 . . . 1 . . . . . 4 Garrison Access 3 | . . . . . . . . 2 . . . 1 Machines Repaired . | . . . . . . . . . . . . . Machines Dismantled . | . . . . . . . . . . . . . Machines Sabotaged . | . . . . . . . . . . . . . Overloaded Fab Kills . | . . . . . . . . . . . . . Hacking | -11 -10 -10 -10 -9 -8 -7 -7 -7 -7 -7 -7 -5 --------- Run | Yrd Mat Min Exi Min Mat Fac Was Fac Sto Rec Scr Fac Machines Accessed 55 | . 10 . 2 1 5 5 . 17 . 10 3 2 Terminals 26 | . 7 . . . 4 2 . 8 . 5 . . Fabricators 5 | . . . . . . . . 4 . . . 1 Repair Stations 3 | . 1 . . . . . . 2 . . . . Recycling Units 9 | . 2 . . . . 1 . 1 . 5 . . Scanalyzers 2 | . . . . . 1 1 . . . . . . Garrison Access 4 | . . . . . . 1 . 2 . . . 1 Total Hacks 181 | . 35 . 5 1 15 15 . 49 . 30 23 8 Successful 114 | . 24 . 5 1 8 6 . 25 . 17 23 5 Failed 67 | . 11 . . . 7 9 . 24 . 13 . 3 Catastrophic 5 | . . . . . . 1 . 3 . 1 . . Database Lockouts . | . . . . . . . . . . . . . Manual 73 | . 17 . . . 9 6 . 15 1 21 . 4 Terminals 76 | . 21 . . . 11 6 . 22 . 16 . . Fabricators 21 | . . . . . . . . 15 . . . 6 Repair Stations 6 | . 2 . . . . . . 4 . . . . Recycling Units 31 | . 12 . . . . 3 . 2 . 14 . . Scanalyzers 7 | . . . . . 4 3 . . . . . . Garrison Access 11 | . . . . . . 3 . 6 . . . 2 Terminal Hacks 51 | . 10 . 5 1 2 3 . 4 . 3 23 . Record 26 | . . . 4 . . . . . . . 22 . Part Schematic 4 | . 1 . . . . . . . . 3 . . Robot Schematic 1 | . 1 . . . . . . . . . . . Robot Analysis 4 | . 2 . . . 1 1 . . . . . . Prototype ID Bank 2 | . 2 . . . . . . . . . . . Open Door 1 | . . . . 1 . . . . . . . . Open DSF 1 | . . . . . . 1 . . . . . . Branch Access Points 2 | . . . . . 1 . . 1 . . . . Terminal Index 1 | . . . . . . 1 . . . . . . Fabricator Index 1 | . . . . . . . . 1 . . . . Unreport Threat 2 | . 2 . . . . . . . . . . . Recall Investigation 1 | . . . . . . . . 1 . . . . Registered Components 2 | . 1 . . . . . . 1 . . . . Zone Layout 1 | . 1 . . . . . . . . . . . Proto ID Catalog 2 | . . . 1 . . . . . . . 1 . Fabricator Hacks 9 | . . . . . . . . 6 . . . 3 Network Status 2 | . . . . . . . . 1 . . . 1 Load Schematic 4 | . . . . . . . . 3 . . . 1 Build 3 | . . . . . . . . 2 . . . 1 Repair Station Hacks 4 | . 1 . . . . . . 3 . . . . Scan Component 3 | . 1 . . . . . . 2 . . . . Repair 1 | . . . . . . . . 1 . . . . Recycling Unit Hacks 11 | . 6 . . . . . . 1 . 4 . . Recycle Component 1 | . 1 . . . . . . . . . . . Process 1 | . 1 . . . . . . . . . . . Report Inventory 7 | . 2 . . . . . . 1 . 4 . . Retrieve Components 2 | . 2 . . . . . . . . . . . Scanalyzer 5 | . . . . . 3 2 . . . . . . Insert Component 1 | . . . . . . 1 . . . . . . Analyze 1 | . . . . . . 1 . . . . . . Retrieve Study 3 | . . . . . 3 . . . . . . . Garrison Access Hacks 1 | . . . . . . . . 1 . . . . Seal Access 1 | . . . . . . . . 1 . . . . Unauthorized Hacks 33 | . 7 . . . 3 1 . 10 . 10 . 2 Terminals 14 | . 3 . . . 3 . . 3 . 5 . . Track 1 | . 1 . . . . . . . . . . . Botnet 7 | . 2 . . . 2 . . 2 . 1 . . Operators 2 | . . . . . 1 . . 1 . . . . Skim 4 | . . . . . . . . . . 4 . . Fabricators 6 | . . . . . . . . 5 . . . 1 Prioritize 3 | . . . . . . . . 2 . . . 1 Haulers 1 | . . . . . . . . 1 . . . . Recompile 2 | . . . . . . . . 2 . . . . Repair Stations . | . . . . . . . . . . . . . Recycling Units 11 | . 4 . . . . 1 . 1 . 5 . . Monitor 1 | . 1 . . . . . . . . . . . Reject 1 | . 1 . . . . . . . . . . . Recyclers 2 | . 1 . . . . . . 1 . . . . Mask 2 | . 1 . . . . 1 . . . . . . Tunnel 5 | . . . . . . . . . . 5 . . Scanalyzers . | . . . . . . . . . . . . . Garrison Access 2 | . . . . . . . . 1 . . . 1 Jam 2 | . . . . . . . . 1 . . . 1 Data Cores Recovered 3 | . 2 . . . 1 . . . . . . . Used 1 | . 1 . . . . . . . . . . . Hacking Detections 46 | . 10 . . . 5 4 . 16 . 9 . 2 Full Trace Events 5 | . 1 . . . . 1 . 3 . . . . Feedback Events . | . . . . . . . . . . . . . Feedback Blocked . | . . . . . . . . . . . . . Robot Schematics Acquired 1 | . 1 . . . . . . . . . . . Robots Built 1 | . . . . . . . . 1 . . . . Authchips . | . . . . . . . . . . . . . Time 40 | . . . . . . . . 40 . . . . Total Robot Build Rating 1 | . . . . . . . . 1 . . . . Part Schematics Acquired 6 | . 1 . . . . 1 . . . 3 1 . Parts Built 2 | . . . . . . . . 1 . . . 1 Authchips 1 | . . . . . . . . . . . . 1 Time 247 | . . . . . . . . 95 . . . 152 Total Part Build Rating 10 | . . . . . . . . 5 . . . 5 Part Studies Acquired 3 | . . . . . 3 . . . . . . . Parts Repaired 1 | . . . . . . . . 1 . . . . Time 20 | . . . . . . . . 20 . . . . Parts Recycled 1 | . 1 . . . . . . . . . . . Recycled Matter 35 | . 35 . . . . . . . . . . . Retrieved Matter . | . . . . . . . . . . . . . Retrieved Components 9 | . 9 . . . . . . . . . . . Parts Scanalyzed 1 | . . . . . . 1 . . . . . . Part Schematics Acquired 1 | . . . . . . 1 . . . . . . Parts Damaged . | . . . . . . . . . . . . . Bothacking | -11 -10 -10 -10 -9 -8 -7 -7 -7 -7 -7 -7 -5 ------------ Run | Yrd Mat Min Exi Min Mat Fac Was Fac Sto Rec Scr Fac Used RIF Installer . | . . . . . . . . . . . . . Robots Hacked 8 | . . . 4 . . 2 . . . . 1 1 Non-combat 5 | . . . 3 . . 1 . . . . . 1 Combat 3 | . . . 1 . . 1 . . . . 1 . Robot Hacks Applied 9 | . . . 4 . . 3 . . . . 1 1 parse_system 7 | . . . 4 . . 2 . . . . 1 . find_chute 2 | . . . . . . 1 . . . . . 1 Relay Couplers Released 2 | . . . . . . . . . . . . 2 Machine Destruction 2 | . . . . . . . . . . . . 2 Fabnet Peak Effective % . | . . . . . . . . . . . . . Robots Rewired 14 | . . . . . . . . . . 14 . . Allies Hacked . | . . . . . . . . . . . . . Hacks Repelled . | . . . . . . . . . . . . . Allies | -11 -10 -10 -10 -9 -8 -7 -7 -7 -7 -7 -7 -5 -------- Run | Yrd Mat Min Exi Min Mat Fac Was Fac Sto Rec Scr Fac Total Allies 23 | . . 1 . 1 . . 1 1 . 14 . 5 Largest Group 14 | . . 1 1 2 1 . 1 1 . 14 11 5 Highest-Rated Group 258 | . . 31 31 62 31 . 31 14 . 258 191 235 Highest-Rated Ally 47 | . . 31 31 31 31 . 31 14 . 40 40 47 Total Orders 37 | . . . . . . . . 1 . 1 33 2 STAY 15 | . . . . . . . . . . . 14 1 FOLLOW 12 | . . . . . . . . . . . 12 . GUARD 1 | . . . . . . . . . . . . 1 AID 1 | . . . . . . . . 1 . . . . DROP 1 | . . . . . . . . . . . 1 . PICKUP 2 | . . . . . . . . . . 1 1 . COLLECT 5 | . . . . . . . . . . . 5 . Ally Attacks 76 | . . . . 10 22 . 4 . . 1 . 39 Total Damage 1572 | . . . . 169 270 . 84 . . 64 . 985 Kills 12 | . . . . 4 3 . . . . . . 5 Allies Corrupted . | . . . . . . . . . . . . . Allies Melted 1 | . . . . . . . . . . . . 1 Intel | -11 -10 -10 -10 -9 -8 -7 -7 -7 -7 -7 -7 -5 ------- Run | Yrd Mat Min Exi Min Mat Fac Was Fac Sto Rec Scr Fac Active Infowar (turns) 12273 | . . . . . . 12129 . . . . . 144 Machine Analysis 12129 | . . . . . . 12129 . . . . . . Jamming 9678 | . . . . . . 9534 . . . . . 144 Robot Analysis Total 4 | . 2 . . . 1 1 . . . . . . Derelict Logs Recovered 3 | . . 2 . 1 . . . . . . . . Drone Launches . | . . . . . . . . . . . . . Drone Recoveries . | . . . . . . . . . . . . . Exploration | -11 -10 -10 -10 -9 -8 -7 -7 -7 -7 -7 -7 -5 ------------- Run | Yrd Mat Min Exi Min Mat Fac Was Fac Sto Rec Scr Fac Turns Passed 38237 | 47 1246 625 2576 974 1649 12527 39 756 76 1247 15203 1272 Spaces Moved 14383 | 39 744 413 593 614 719 1096 81 1403 170 920 7087 504 Core 5759 | 6 . . 146 . . . . . . . 5600 7 Treads 280 | . . . . . 280 . . . . . . . Legs 1333 | . . . . . . . . . . . 854 479 Wheels 2708 | 33 744 413 447 614 439 . . . . . . 18 Hover . | . . . . . . . . . . . . . Flight 4303 | . . . . . . 1096 81 1403 170 920 633 . Fastest Speed 42 | 50 100 145 135 145 125 42 42 42 42 42 42 90 Average Speed 145 | 92 138 145 406 153 177 45 42 43 42 114 165 132 Slowest Speed 1500 | 100 145 145 1500 155 217 150 42 127 42 127 800 900 Overloaded Moves . | . . . . . . . . . . . . . Propulsion Burnouts . | . . . . . . . . . . . . . Robots Hopped 19 | . . . . . . 3 2 10 4 . . . Potential Cave-ins . | . . . . . . . . . . . . . Cave-ins Triggered . | . . . . . . . . . . . . . Teleports 297 | . . . 8 . . . . . . . 285 4 Exploration Rate (%) 60 | 3 97 95 72 98 64 19 71 37 34 97 93 11 Regions Visited 12 Branch Regions 6 Pre-discovered Areas 11 | . . 1 1 . . . . . . 5 4 . Known Exits Taken 2 | . . . . . . . . 1 . . 1 . Unknown Exits Taken 8 | 1 1 1 1 1 1 . . . 1 1 . . Scrap Searched 11 | . . 1 . 2 . . . . . . 8 . Spaces Dug 67 | . . 7 . . 27 5 . 6 2 . . 20 Terrain Destroyed 198 | . 16 18 . . 39 5 . 6 2 1 . 111 Melee 20 | . . . . . . 5 . 6 2 . . 7 Projectile 4 | . . . . . . . . . . 1 . 3 AOE 174 | . 16 18 . . 39 . . . . . . 101 Terrain Rammed . | . . . . . . . . . . . . . Walls Destroyed . | . . . . . . . . . . . . . Machines Disabled . | . . . . . . . . . . . . . Actions | -11 -10 -10 -10 -9 -8 -7 -7 -7 -7 -7 -7 -5 --------- Run | Yrd Mat Min Exi Min Mat Fac Was Fac Sto Rec Scr Fac Total 31074 | 48 890 429 758 636 940 13052 82 1511 167 1085 10606 870 Wait 15776 | . 67 5 132 2 63 11812 . 77 . 70 3394 154 Move 14337 | 38 743 412 592 613 718 1090 77 1384 161 919 7086 504 Hop 16 | . . . . . . 3 1 8 4 . . . Pick Up 150 | 6 21 2 5 5 27 24 1 4 . 4 47 4 Fast Attach 56 | 4 3 . 4 . 3 8 . 6 . 1 7 20 Attach 58 | . 3 . 3 . 10 12 . 1 . 3 13 13 Detach 18 | . . . . . . 3 . 3 . . 8 4 Swap 60 | . 8 2 6 3 12 11 2 3 . . . 13 Drop 164 | . 7 2 12 7 26 34 1 9 . 4 50 12 Fire 198 | . 38 6 . 6 81 . . . . 2 . 65 Melee 173 | . . . 4 . . 55 . 16 2 14 1 81 Ram . | . . . . . . . . . . . . . Kick . | . . . . . . . . . . . . . Crush . | . . . . . . . . . . . . . Escape Stasis . | . . . . . . . . . . . . . Rewire 68 | . . . . . . . . . . 68 . . Trap . | . . . . . . . . . . . . . Miscellaneous . | . . . . . . . . . . . . . Route ------- -11/Scrapyard -10/Materials (discovered 5 exits: [*Mat x3] / [*Min] / [*Sub]) -10/Mines (discovered 3 exits: [*Mat x2] / *Exi) -10/Exiles (discovered 2 exits: *Min x2) -9/Mines (discovered 2 exits: *Mat x2) -8/Materials (discovered 2 exits: *Fac x2) -7/Factory (discovered 3 exits: *Fac / Sto / *Low) -7/Waste -7/Factory (discovered 5 exits: *Fac / *Sto x2 / *Low x2) -7/Storage -7/Recycling (discovered 2 exits: *Fac / *Scr) -7/Scraptown (discovered 2 exits: *Fac x2) -5/Factory (discovered 6 exits: *Fac x4 / Upp x2) History --------- Turn | Location | Event 2 | -11/Scrapyard | Met Revision 17 6 | -11/Scrapyard | Discovered new exit (range 15) 48 | -11/Scrapyard | Entered Materials 318 | -10/Materials | Build established: Mutant 419 | -10/Materials | Discovered new exit (range 5) 855 | -10/Materials | Discovered new exit (range 7) 935 | -10/Materials | Discovered new exit (range 12) 1229 | -10/Materials | Discovered new exit (range 11) 1274 | -10/Materials | Discovered new exit (range 8) 1294 | -10/Materials | Entered Mines 1296 | -10/Mines | Met a Derelict bent on vengeance 1540 | -10/Mines | Discovered new exit (range 11) 1662 | -10/Mines | Met a Derelict testing a Signal Generator 1667 | -10/Mines | Found Signal Generator 1768 | -10/Mines | Learned location of Mines (-9) 1771 | -10/Mines | Learned Materials terminal intel 1817 | -10/Mines | Deemed a non-threat by the Exiles lab entrance 1819 | -10/Mines | Discovered new exit (range 5) 1868 | -10/Mines | Discovered new exit (range 7) 1919 | -10/Mines | Entered Exiles 1919 | -10/Exiles | Accompanied by 1 ally 1938 | -10/Exiles | Discovered new exit (range 15) 1956 | -10/Exiles | Met 8R-AWN 1983 | -10/Exiles | Met EX-HEX 2037 | -10/Exiles | Met EX-DEC 2078 | -10/Exiles | Learned location of Zion (-6) 2108 | -10/Exiles | Met EX-BIN 2313 | -10/Exiles | Found Blink Core 2840 | -10/Exiles | Found Supersonic Drone Bay 2856 | -10/Exiles | Found Flying Fortress v7 2887 | -10/Exiles | Found YOLO Cannon 4483 | -10/Exiles | Discovered new exit (range 10) 4495 | -10/Exiles | Stole two prototypes: Flying Fortress v7, YOLO Cannon 4495 | -10/Exiles | Entered Mines 4495 | -9/Mines | Accompanied by 1 ally 4498 | -9/Mines | Received a Mining Laser from a helpful Derelict 4553 | -9/Mines | Discovered new exit (range 9) 4605 | -9/Mines | Met a Derelict shopkeep closing up shop 4861 | -9/Mines | Discovered new exit (range 10) 5053 | -9/Mines | Received a Rocket Launcher from a helpful Derelict 5230 | -9/Mines | Found a Scrap Suit stashed away for nefarious purposes 5237 | -9/Mines | Found Scrap Suit 5469 | -9/Mines | Entered Materials 5469 | -8/Materials | Accompanied by 1 ally 5469 | -8/Materials | Evolved 4 slots: Propulsion x2, Utility x2 5470 | -8/Materials | Loaded intel: 12 terminal locations 5527 | -8/Materials | Met 7R-MNS 5532 | -8/Materials | Garrison activated, responded to threat 5756 | -8/Materials | Discovered new exit (range 12) 6297 | -8/Materials | Discovered new exit (range 8) 7091 | -8/Materials | Build established: Scavenger-Mutant 7118 | -8/Materials | Entered Factory 7118 | -7/Factory | Evolved 2 slots: Propulsion x1, Utility x1 7119 | -7/Factory | Caught up to 7R-MNS 7119 | -7/Factory | Identified exit to Storage 7135 | -7/Factory | Identified exit to DSF 7351 | -7/Factory | Garrison activated, responded to threat 7413 | -7/Factory | Discovered new exit (range 11) 19229 | -7/Factory | Attacked by 7R-MNS 19275 | -7/Factory | 7R-MNS lamented failing the tripod run 19275 | -7/Factory | Destroyed 7R-MNS 19281 | -7/Factory | Found Centrium Heavy Armor Plating 19286 | -7/Factory | Found Corrupted Tripod Weapons Platform 19289 | -7/Factory | Found Multitargeting Array 19299 | -7/Factory | Found Exp. Focal Shield 19302 | -7/Factory | Found Corrupted Thermal Barrier 19419 | -7/Factory | Build established: Mutant 19434 | -7/Factory | Discovered new exit (range 7) 19522 | -7/Factory | Identified exit to Factory 19543 | -7/Factory | Identified exit to Lower Caves 19645 | -7/Factory | Manually triggered Chute Trap 19645 | -7/Factory | Sucked down chute 19645 | -7/Factory | Entered Waste 19646 | -7/Waste | Met a frightened Derelict 19656 | -7/Waste | Spotted C-40 Crusher 19658 | -7/Waste | Spotted C-40 Crusher 19660 | -7/Waste | EMP discharged 19666 | -7/Waste | Spotted C-40 Crusher 19667 | -7/Waste | Spotted C-40 Crusher 19679 | -7/Waste | Spotted C-40 Crusher 19679 | -7/Waste | Spotted C-40 Crusher 19679 | -7/Waste | Discovered new exit (range 11) 19684 | -7/Waste | Entered Factory 19736 | -7/Factory | Repaired Corrupted Mak. System Restoration Module 19826 | -7/Factory | Assembled infested ambush trap array 19846 | -7/Factory | Garrison activated, responded to threat 19866 | -7/Factory | Discovered exit to Lower Caves (range 15) 19921 | -7/Factory | Found Prototype Launcher 19921 | -7/Factory | Identified Rocket Array 19969 | -7/Factory | Discovered exit to Factory (range 4) 19974 | -7/Factory | Fabricated Imp. Hacking Suite? 20376 | -7/Factory | Fabricated M-13 Machinist (x1) 20440 | -7/Factory | Entered Storage 20515 | -7/Storage | Used back door to open Recycling access 20515 | -7/Storage | Discovered new exit (range 5) 20516 | -7/Storage | Entered Recycling 20947 | -7/Recycling | Build established: Commander-Mutant 20985 | -7/Recycling | Scanned before Scraplab entrance 21201 | -7/Recycling | Discovered new exit (range 7) 21706 | -7/Recycling | Entered Scraplab 21716 | -7/Recycling | Discovered new exit (range 2) 21763 | -7/Recycling | Entered Scraptown 21763 | -7/Scraptown | Accompanied by 11 allies 21807 | -7/Scraptown | Heard Great Nut preacher, LISTEN AND RECITE! 21836 | -7/Scraptown | Visited IN-MT5's Study 21846 | -7/Scraptown | Visited Shadow of the Wyrm 21886 | -7/Scraptown | Visited SPCMW 21904 | -7/Scraptown | Visited Awakened 21929 | -7/Scraptown | Visited Bundlers 21984 | -7/Scraptown | Visited The Evicted 22291 | -7/Scraptown | Discovered new exit (range 11) 22659 | -7/Scraptown | System corruption reached 10% 22659 | -7/Scraptown | System corruption cleaned by C-Scrubber 22678 | -7/Scraptown | System corruption cleaned by C-Scrubber 22929 | -7/Scraptown | Visited TADAMA 22974 | -7/Scraptown | Turned away by UFD registrar 23022 | -7/Scraptown | Visited Cartography Club 23050 | -7/Scraptown | Found Surveybot 17 Chip 23110 | -7/Scraptown | Visited Science Guys 23162 | -7/Scraptown | Visited Derelict Rescue Squad 23171 | -7/Scraptown | Found DRS Beacon 23199 | -7/Scraptown | Visited Modified Component R&D 23243 | -7/Scraptown | Visited Scrap Suit Storage 23273 | -7/Scraptown | Visited Scrapoid Pod Storage 23292 | -7/Scraptown | Found Scrapoid Pod 23322 | -7/Scraptown | Visited LU-1G1's Boring Crew 23502 | -7/Scraptown | Visited Abandonware Association 23518 | -7/Scraptown | Learned abandonware demo "POISON.EXE" 23551 | -7/Scraptown | Visited Scrapoid Research Area 23904 | -7/Scraptown | Found Scrapoid Pod 23913 | -7/Scraptown | Found Scrapoid Pod 23922 | -7/Scraptown | Found Scrapoid Pod 23931 | -7/Scraptown | Found Scrapoid Pod 23940 | -7/Scraptown | Found Scrapoid Pod 23949 | -7/Scraptown | Found Scrapoid Pod 24670 | -7/Scraptown | Learned location of Recycling (-7) 24670 | -7/Scraptown | Learned location of Lower Caves (-6) 24670 | -7/Scraptown | Learned location of Proximity Caves (-6) 24670 | -7/Scraptown | Learned location of Cetus (-6) 24670 | -7/Scraptown | Learned 12 Factory zone layouts 24670 | -7/Scraptown | Learned 20 Factory zone layouts 24670 | -7/Scraptown | Learned 8 Research zone layouts 24670 | -7/Scraptown | Learned 4 Access zone layouts 24670 | -7/Scraptown | Learned 4 Storage zone layouts 24670 | -7/Scraptown | Learned 16 Upper Caves zone layouts 24670 | -7/Scraptown | Learned 8 Proximity Caves zone layouts 24670 | -7/Scraptown | Learned 20 Proximity Caves zone layouts 24670 | -7/Scraptown | Learned 4 Armory zone layouts 24670 | -7/Scraptown | Learned location of 1 exit from Factory 24670 | -7/Scraptown | Learned location of 1 exit from Proximity Caves 24670 | -7/Scraptown | Identified exit to Factory 26188 | -7/Scraptown | Found Scrap Suit 26268 | -7/Scraptown | Found Deep Structural Scanner 35881 | -7/Scraptown | System corruption cleaned by C-Scrubber 36031 | -7/Scraptown | Attached Tripod Weapons Platform, gained temporary slots: Weapon x2 36031 | -7/Scraptown | System corruption cleaned by C-Scrubber 36966 | -7/Scraptown | Entered Factory 36966 | -5/Factory | Accompanied by 6 allies 36966 | -5/Factory | Evolved 4 slots: Power x1, Utility x2, Weapon x1 36967 | -5/Factory | Identified exit to Factory 36968 | -5/Factory | Identified exit to Upper Caves 37027 | -5/Factory | Lost 5 allies 37276 | -5/Factory | Build established: Pyromaniac-Gunner 37465 | -5/Factory | Scrapoid Pod released 05F06-D (x5) 37663 | -5/Factory | Cargo convoy interrupted 37677 | -5/Factory | Garrison activated, responded to threat 37688 | -5/Factory | Fabricated IN-MT5's Pitchfork "Insurrection"? 37701 | -5/Factory | Lost 5 allies 37728 | -5/Factory | Build established: Scavenger-Tank 37752 | -5/Factory | Destroyed 12 combat bots 37866 | -5/Factory | First assault squad dispatched 37886 | -5/Factory | Lost 4 parts (1p3w) 37976 | -5/Factory | Lost 4 parts (2n1u1w) 37986 | -5/Factory | Destroyed 15 combat bots 38096 | -5/Factory | Garrison activated, responded to threat 38121 | -5/Factory | Core integrity fell below 50% 38165 | -5/Factory | Lost 10 parts (2p3n4u1w) 38181 | -5/Factory | Core integrity fell below 20% 38238 | -5/Factory | Destroyed by Y-64 Sentinel with Wave Gun Last Messages --------------- 38178_ U-05 Engineer builds a Wall. 38178_ U-05 Engineer lays Concrete. 38178_ U-05 Engineer builds a Wall. 38178_ U-05 Engineer lays Concrete. 38179_ U-05 Engineer builds a Wall. 38179_ U-05 Engineer lays Concrete. 38180_ U-05 Engineer builds a Wall. 38180_ U-05 Engineer lays Concrete. 38180_ Destroyed Hvy. Laser. 38181_ U-05 Engineer lays Concrete. 38182_ U-05 Engineer builds a Wall. 38183_ G-50 Soldier destroyed. 38186_ U-05 Engineer lays Concrete. 38188_ Blink Core suddenly shrinks, drawing all nearby mass into a quantum tunnel. 38188_ Exp. Power Amplifier ripped away by subspace vortex. 38188_ Authchip [Weapon] grabbed from subspace vortex. 38229_ Slug penetrates Wall. 38233_ Penetrated by Slug. 38236_ Slug penetrates Wall. Map ----- +----------------------------------------------------+ | # " " #?????????????????"""???? | | + " " #########?????????"""???? | | ########### # " " # ?????????" ????? | | ########????######+# " " #"" ????????? ????? | | ????????????# # " " #"" ??????###+###### | | ????????????# # " " #"" #????# | | ????????????# """ # #G #????# | | ????????????# """ #######"" " #????# T | | ????????????# """ #?????#"" " ###### | | ????????????# #?????#"" " + | | ????????????# #?????# " ###### | | ????????????#] ####### #????# | | ############# # "[% #????# | | ^ #"" # # = #????# """""" | | """ #" | %!+ #????# """""" | | """ ^ #"F # ????# """""" | | """ ^^ #"" # # #????# """""" | | ! # # # ???# | | """"" ########! ###+############ """""" | | """ " %[#= * % % """""" | | * " # |%!!= % """""" | | ! # !! !! """""" | | %" | | * %#% ! % = | | %! #!= ###/#####################/###### | | ####### #####% % #% h= @ #????# | | *% #=kY = #????# """"""" | | % = #* #????# """"""" | | * # #????# """"""" | | # #????# """"""" | | ## #????# | | ######### ### #????# | | #??# # ? # A #????# | | #?# #? # #?#### | | #?##?# ! # #? # "" "" | | #????# # #?#### ""F"" | | #????# =#! #????# """ | | #????# | ########+#####????############# | | #????# #?????????????????????????????? | | #????# #?????????????????????????????? | | #????###########??????????????#######?######## | | #????????????????????????????? #?# | | #?????????????????????????????##### #?# | | #?????????????????????????????#???# #?# """ "" | | #?????????????????????????????#???# #?# """ "" | | * #?????????????????????????????#???# #?# """ "" | | %= #?????????????????????????????#?### ### | | | #?????????????????????????????#?# + """ "" | | ! #?????????????????????????????#?# # """ "" | | #?????????????????????????????#?# # """ "" | +----------------------------------------------------+ Best States ------------- Heat Dissipation 78 Coolant Potential 120 Energy Generation 28 Energy Capacity 550 Matter Stores 300 Matter Capacity 300 Sight Range 16 Terrain Scan Density 10 Jamming Range 14 Power Amplification 40 Additional Mass Support 9 Armor Coverage 600 Resistance: KI 30 Resistance: TH 50 Evasion (%) 61 Core Analysis 6 Armor Integrity Analysis 30 Recoil Reduction 4 Energy Filtering 50 Offensive Hacking 22 Authchip Count 5 Item Schematics ----------------- Huge Storage Unit | -10/Materials | Hacked Centrium Heavy Armor Plating | -7/Factory | Scanalyzed Imp. Propulsion Shielding | -7/Recycling | Hacked Imp. Utility Shielding | -7/Recycling | Hacked Imp. Weapon Shielding | -7/Recycling | Hacked IN-MT5's Pitchfork "Insurrection" | -7/Scraptown | Archive Robot Schematics ------------------ M-13 Machinist | -10/Materials | Hacked Fabricated ------------ Imp. Hacking Suite | x1 | -7/Factory | Preloaded M-13 Machinist | x1 | -7/Factory IN-MT5's Pitchfork "Insurrection" | x1 | -5/Factory | Authchip Repaired ---------- Mak. System Restoration Module | 33% | -7/Factory | Corrupted Studied --------- Katana | -8/Materials | Hacked Rocket Launcher | -8/Materials | Hacked Arm. Treads | -8/Materials | Hacked Alien Tech Used ----------------- None Achievements -------------- None Challenges ------------ None Game ------ Seed BlastGravmagLaser Manual? 0 Play Time 03:13:12 Cumulative 1316.8 hours Start 2026.02.01 @ 21:19:55 End 2026.02.02 @ 02:13:04 Sessions 9 Manual Loads 0 Difficulty Rogue Special Mode None Game No. 446 Rogue 441 Adventurer 4 Explorer 1 Win Type - Total 31 Types 15/5/2/2/0/1/2/0/2/2 Lore% 97 Gallery% 96 Achievement% 84 Wizard Run 0 Options --------- Layout 0 ASCII 0 Keyboard 0 Movement Numpad Keybinds 0 Fullscreen 2 Font 18/SmallcapsGlow Map View 76x50 Zoom Use 0% Tactical HUD 1 Map Filters NONE Filters NONE Steam 1 RUN: a8a8b5dc-569c-46ff-a505-a0c1f5904628